bitfinex-derivatives/quotes_SOLF0:USTF0_20250705
["timestamp","ask_amount","ask_price","bid_price","bid_amount"]
[1751688023006,6.13828923,147.66,147.64,2.34418617]
[1751688023207,6.13828923,147.65,147.64,2.34418617]
[1751688024504,6.13828923,147.65,147.64,9.11568617]
[1751688026509,6.13828923,147.65,147.64,2.34418617]
[1751688029306,6.13828923,147.65,147.62,45.74]
[1751688029512,6.13828923,147.64,147.62,45.74]
[1751688029716,6.13828923,147.63,147.62,48.08418617]
[1751688031113,6.29767064,147.67,147.62,48.08418617]
[1751688031318,12.98251607,147.66,147.64,2.34418617]
[1751688031515,6.21161607,147.65,147.64,2.34418617]
[1751688033223,13.06707064,147.69,147.64,2.34418617]
[1751688033423,6.19999773,147.68,147.67,2.34418617]
[1751688033720,12.96969773,147.68,147.67,2.34418617]
[1751688036322,6.19999773,147.68,147.67,2.34418617]
[1751688038617,12.96969773,147.68,147.67,2.34418617]
[1751688039219,12.96969773,147.68,147.65,6.7709]
[1751688039523,6.7697,147.68,147.67,2.34418617]
[1751688039728,12.98742484,147.68,147.67,2.34418617]
[1751688044032,6.21772484,147.68,147.67,2.34418617]
[1751688045230,6.21772484,147.68,147.67,9.11428617]
[1751688045431,6.29767064,147.72,147.67,48.10418617]
[1751688045730,6.29767064,147.73,147.71,2.34418617]
[1751688045937,6.29767064,147.73,147.72,2.34418617]
[1751688046435,6.29767064,147.75,147.72,2.34418617]
[1751688046734,6.29767064,147.75,147.74,2.34418617]
[1751688047325,6.29767064,147.76,147.74,2.34418617]
[1751688047530,6.29767064,147.76,147.75,2.34418617]
[1751688047832,25.0847461,147.76,147.73,3.66194502]
[1751688048032,13.06407064,147.76,147.73,3.66194502]
[1751688051434,6.7664,147.76,147.73,10.42924502]
[1751688052834,17.72937064,147.77,147.73,10.42924502]
[1751688053037,13.06337064,147.77,147.74,6.7669]
[1751688053234,13.06337064,147.77,147.73,3.66194502]
[1751688054537,13.06337064,147.77,147.73,10.42914502]
[1751688055239,6.7657,147.77,147.73,10.42914502]
[1751688056334,6.29767064,147.78,147.72,45.8]
[1751688056534,6.29767064,147.76,147.72,45.8]
[1751688057041,6.7669,147.75,147.72,45.8]
[1751688057437,6.19048383,147.74,147.72,45.8]
[1751688057637,6.19048383,147.73,147.72,45.8]
[1751688057842,6.19048383,147.73,147.68,49.44354438]
[1751688058040,6.19048383,147.72,147.68,49.44354438]
[1751688058241,9.96121502,147.76,147.68,49.44354438]
[1751688058439,9.96121502,147.74,147.68,45.78]
[1751688058639,14.90955546,147.73,147.68,45.78]
[1751688058835,6.769,147.7,147.68,45.78]
[1751688059138,6.19538482,147.69,147.64,49.44354438]
[1751688059346,12.23871502,147.72,147.64,49.44354438]
[1751688059347,6.19538482,147.68,147.64,49.44354438]
[1751688059644,6.7692,147.69,147.65,6.7707]
[1751688059837,6.19317477,147.68,147.65,6.7707]
[1751688060043,6.7689,147.7,147.64,49.44354438]
[1751688060244,6.19359723,147.69,147.64,49.44354438]
[1751688060446,8.57517064,147.72,147.68,3.66354438]
[1751688060645,6.19399192,147.71,147.68,3.66354438]
[1751688060846,9.1841,147.73,147.68,3.66354438]
[1751688061047,6.19401585,147.72,147.69,6.7691]
[1751688061243,6.19401585,147.71,147.69,6.7691]
[1751688061443,9.1841,147.73,147.69,6.7691]
[1751688061645,6.19390336,147.72,147.69,6.7691]
[1751688061846,6.19390336,147.71,147.69,6.7691]
[1751688062146,9.1841,147.73,147.69,6.7691]
[1751688062338,6.19296876,147.72,147.69,6.7691]
[1751688062539,6.19296876,147.71,147.69,6.7691]
[1751688062742,9.1841,147.73,147.69,6.7691]
[1751688062942,6.15971381,147.72,147.69,6.7691]
[1751688063143,6.15971381,147.71,147.69,6.7691]
[1751688063442,9.1841,147.73,147.69,6.7691]
[1751688063643,6.16001964,147.72,147.69,6.7691]
[1751688063838,9.1841,147.73,147.69,6.7691]
[1751688064040,6.16002265,147.72,147.69,6.7691]
[1751688064241,9.1841,147.73,147.69,6.7691]
[1751688064546,6.15976867,147.72,147.69,6.7691]
[1751688064751,9.1841,147.73,147.69,6.7691]
[1751688064950,6.1595552,147.72,147.69,6.7691]
[1751688065151,9.1841,147.73,147.69,6.7691]
[1751688065344,6.15907615,147.72,147.69,6.7691]
[1751688065644,9.1841,147.73,147.69,6.7691]
[1751688065948,6.15930562,147.72,147.69,6.7691]
[1751688066143,9.1841,147.73,147.69,6.7691]
[1751688066343,6.15882434,147.72,147.69,6.7691]
[1751688066640,9.1841,147.73,147.69,6.7691]
[1751688066842,6.15911195,147.72,147.69,6.7691]
[1751688067044,10.86037064,147.76,147.69,49.46383538]
[1751688067250,6.15952808,147.75,147.71,3.66383538]
[1751688067546,6.15952808,147.74,147.71,3.66383538]
[1751688067748,6.15952808,147.73,147.71,3.66383538]
[1751688067949,4.5627,147.76,147.71,3.66383538]
[1751688068153,6.17035189,147.75,147.71,3.66383538]
[1751688068347,6.17035189,147.74,147.71,3.66383538]
[1751688068649,6.7665,147.75,147.72,6.7678]
[1751688068847,6.17011076,147.74,147.72,6.7678]
[1751688069148,6.7665,147.75,147.72,6.7678]
[1751688069449,6.16797868,147.74,147.72,6.7678]
[1751688069649,6.7665,147.75,147.72,6.7678]
[1751688069950,6.16788809,147.74,147.72,6.7678]
[1751688070154,6.7665,147.75,147.72,6.7678]
[1751688070448,6.16798057,147.74,147.72,6.7678]
[1751688070650,6.7665,147.75,147.72,6.7678]
[1751688070845,6.16928331,147.74,147.72,6.7678]
[1751688071149,6.7665,147.75,147.72,6.7678]
[1751688071350,6.16943591,147.74,147.72,6.7678]
[1751688071550,6.7665,147.75,147.72,6.7678]
[1751688071853,6.16947552,147.74,147.72,6.7678]
[1751688072146,11.3289,147.76,147.72,6.7678]
[1751688072350,6.16947552,147.75,147.72,6.7678]
[1751688072550,6.16947552,147.74,147.72,6.7678]
[1751688072850,6.16947552,147.73,147.72,6.7678]
[1751688074954,11.3289,147.76,147.72,6.7678]
[1751688075252,6.18152636,147.75,147.72,6.7678]
[1751688075452,6.18152636,147.74,147.72,6.7678]
[1751688075653,6.18152636,147.73,147.72,6.7678]
[1751688076454,6.18152636,147.73,147.71,10.43193538]
[1751688076754,6.7666,147.75,147.71,10.43193538]
[1751688077055,6.18512274,147.74,147.71,10.43193538]
[1751688077248,6.18512274,147.73,147.71,10.43193538]
[1751688077544,6.7666,147.75,147.71,10.43082977]
[1751688077752,6.19678521,147.74,147.71,10.43082977]
[1751688077950,6.19678521,147.73,147.71,10.43082977]
[1751688078151,6.7666,147.75,147.71,10.43082977]
[1751688078351,6.19732729,147.74,147.71,10.43082977]
[1751688078552,6.19732729,147.73,147.71,10.43082977]
[1751688078850,6.7666,147.75,147.71,10.43082977]
[1751688079052,6.20002493,147.74,147.71,10.43082977]
[1751688079252,6.20002493,147.73,147.71,10.43082977]
[1751688079554,6.767,147.74,147.71,10.43082977]
[1751688079853,6.20082711,147.73,147.71,10.43082977]
[1751688080056,6.767,147.74,147.71,10.43082977]
[1751688080355,6.20082711,147.73,147.71,10.43082977]
[1751688080554,6.767,147.74,147.71,10.43082977]
[1751688080755,6.20168976,147.73,147.71,10.43082977]
[1751688080952,6.767,147.74,147.71,10.43082977]
[1751688081150,6.20168976,147.73,147.71,10.43082977]
[1751688081352,6.767,147.74,147.71,10.43082977]
[1751688081556,6.20322788,147.73,147.71,10.43082977]
[1751688081858,6.767,147.74,147.71,10.43082977]
[1751688082061,6.20329817,147.73,147.71,10.43082977]
[1751688082354,6.767,147.74,147.71,10.43082977]
[1751688082555,6.20457424,147.73,147.71,10.43082977]
[1751688082860,6.767,147.74,147.71,10.43082977]
[1751688083052,6.19912373,147.73,147.71,10.43082977]
[1751688083354,10.86037064,147.76,147.69,45.8]
[1751688083553,6.29767064,147.73,147.69,45.8]
[1751688083748,6.19906864,147.72,147.69,45.8]
[1751688083953,6.19906864,147.71,147.69,52.5689]
[1751688084153,6.7677,147.73,147.69,52.5689]
[1751688084352,6.2010475,147.72,147.7,3.66272977]
[1751688084554,6.2010475,147.71,147.7,3.66272977]
[1751688084854,6.7676,147.73,147.7,3.66272977]
[1751688085054,6.20137523,147.72,147.7,3.66272977]
[1751688085256,6.20137523,147.71,147.7,3.66272977]
[1751688087458,6.20137523,147.71,147.69,45.8]
[1751688087755,6.20137523,147.7,147.69,45.8]
[1751688091854,6.20137523,147.7,147.65,49.52272977]
[1751688092060,6.20137523,147.69,147.65,49.52272977]
[1751688092260,6.20137523,147.68,147.66,6.7703]
[1751688092465,6.20137523,147.67,147.66,6.7703]
[1751688093463,6.7691,147.7,147.66,6.7703]
[1751688093662,6.19871373,147.69,147.66,6.7703]
[1751688093863,6.19871373,147.68,147.66,6.7703]
[1751688094060,6.7691,147.7,147.66,6.7703]
[1751688094357,6.19871655,147.69,147.66,6.7703]
[1751688094561,6.19871655,147.68,147.66,6.7703]
[1751688094764,6.7691,147.7,147.66,6.7703]
[1751688094964,6.19893553,147.69,147.66,6.7703]
[1751688095261,6.19893553,147.68,147.66,6.7703]
[1751688095463,6.7691,147.7,147.66,6.7703]
[1751688095664,6.19886695,147.69,147.66,6.7703]
[1751688095962,6.7691,147.7,147.66,6.7703]
[1751688095963,6.19886695,147.68,147.66,6.7703]
[1751688096163,6.7691,147.7,147.66,6.7703]
[1751688096464,6.19886123,147.69,147.66,6.7703]
[1751688096662,6.19886123,147.68,147.66,6.7703]
[1751688096864,6.7691,147.7,147.66,6.7703]
[1751688097063,6.19829367,147.69,147.66,6.7703]
[1751688097260,6.19829367,147.68,147.66,6.7703]
[1751688097465,6.7691,147.7,147.66,6.7703]
[1751688097665,6.19809778,147.69,147.66,6.7703]
[1751688097966,6.19809778,147.68,147.66,6.7703]
[1751688098167,6.7691,147.7,147.66,6.7703]
[1751688098366,6.18716792,147.69,147.66,6.7703]
[1751688098567,6.18716792,147.68,147.66,6.7703]
[1751688098865,6.7691,147.7,147.66,6.7703]
[1751688099062,6.18706947,147.69,147.66,6.7703]
[1751688099262,6.18706947,147.68,147.66,6.7703]
[1751688099462,6.7691,147.7,147.66,6.7703]
[1751688099665,6.18707677,147.69,147.66,6.7703]
[1751688099867,6.18707677,147.68,147.66,6.7703]
[1751688100165,6.7691,147.7,147.66,6.7703]
[1751688100366,6.18740844,147.69,147.66,6.7703]
[1751688100566,6.18740844,147.68,147.66,6.7703]
[1751688100768,6.7691,147.7,147.66,6.7703]
[1751688100963,6.18716888,147.69,147.66,6.7703]
[1751688101164,6.18716888,147.68,147.66,6.7703]
[1751688101363,6.7691,147.7,147.66,6.7703]
[1751688101566,6.18736112,147.69,147.66,6.7703]
[1751688101766,6.18736112,147.68,147.66,6.7703]
[1751688101959,6.7691,147.7,147.66,6.7703]
[1751688102163,6.18736718,147.69,147.66,6.7703]
[1751688102359,6.18736718,147.68,147.66,6.7703]
[1751688102559,6.7691,147.7,147.66,6.7703]
[1751688102763,6.18702733,147.69,147.66,6.7703]
[1751688102963,6.18702733,147.68,147.66,6.7703]
[1751688103169,6.7691,147.7,147.66,6.7703]
[1751688103474,6.18685941,147.69,147.66,6.7703]
[1751688103669,6.18685941,147.68,147.66,6.7703]
[1751688103868,6.7691,147.7,147.66,6.7703]
[1751688104070,6.18673666,147.69,147.66,6.7703]
[1751688104367,6.18673666,147.68,147.66,6.7703]
[1751688104569,6.7691,147.7,147.66,6.7703]
[1751688104868,6.18751803,147.69,147.66,6.7703]
[1751688105071,6.18751803,147.68,147.66,6.7703]
[1751688105270,6.7691,147.7,147.66,6.7703]
[1751688105470,6.18738836,147.69,147.66,6.7703]
[1751688105669,6.18738836,147.68,147.66,6.7703]
[1751688105868,6.7691,147.7,147.66,6.7703]
[1751688106069,6.1873823,147.69,147.66,6.7703]
[1751688106271,6.1873823,147.68,147.66,6.7703]
[1751688106567,6.7695,147.69,147.65,56.29627948]
[1751688106770,6.18708819,147.68,147.65,250.23627948]
[1751688107073,6.18708819,147.67,147.65,250.23627948]
[1751688107272,6.2905291,147.7,147.65,250.23627948]
[1751688107474,6.18539028,147.69,147.65,250.23627948]
[1751688107672,12.95509028,147.68,147.65,250.23627948]
[1751688107868,6.18539028,147.67,147.65,250.23627948]
[1751688108065,6.7697,147.68,147.65,250.23627948]
[1751688108270,6.15816421,147.67,147.65,250.23627948]
[1751688108473,6.7697,147.68,147.65,250.23627948]
[1751688108772,6.1573553,147.67,147.65,250.23627948]
[1751688108973,6.7697,147.68,147.65,250.23627948]
[1751688109273,6.15714993,147.67,147.65,250.23627948]
[1751688109472,6.7697,147.68,147.65,250.23627948]
[1751688109673,6.15636934,147.67,147.65,250.23627948]
[1751688109874,6.7697,147.68,147.65,250.23627948]
[1751688110070,6.15637139,147.67,147.65,250.23627948]
[1751688110276,6.7694,147.69,147.66,6.7706]
[1751688110473,6.15565768,147.68,147.66,6.7706]
[1751688110672,6.15565768,147.67,147.66,6.7706]
[1751688111967,6.15565768,147.67,147.65,56.29617948]
[1751688112165,6.7694,147.69,147.66,193.94]
[1751688112374,6.15478197,147.68,147.66,193.94]
[1751688112574,6.15478197,147.67,147.66,193.94]
[1751688113273,6.15478197,147.67,147.66,200.7106]
[1751688113778,6.15478197,147.67,147.66,203.05689413]
[1751688119569,6.15478197,147.67,147.66,196.28629413]
[1751688120381,6.15478197,147.67,147.66,196.22629413]
[1751688120680,6.15478197,147.67,147.65,45.86]
[1751688120880,8.63682323,147.7,147.66,193.88]
[1751688121072,6.7701,147.67,147.66,193.88]
[1751688121274,12.90677412,147.67,147.66,193.88]
[1751688123784,12.90677412,147.67,147.66,196.22629413]
[1751688124387,12.90677412,147.67,147.66,2.34629413]
[1751688124588,12.90677412,147.67,147.66,196.22629413]
[1751688125188,12.90677412,147.67,147.66,193.88]
[1751688126292,12.90677412,147.67,147.65,54.97732327]
[1751688126594,6.7701,147.67,147.66,193.88]
[1751688126790,12.9111149,147.67,147.66,193.88]
[1751688131200,12.9111149,147.67,147.66,196.22632327]
[1751688133198,6.1410149,147.67,147.61,7.164]
[1751688133399,8.48733817,147.66,147.57,45.82]
[1751688133596,6.1410149,147.65,147.6,2.34632327]
[1751688133796,6.7722,147.63,147.6,2.34632327]
[1751688134200,6.14082002,147.62,147.61,2.34632327]
[1751688134401,6.14082002,147.62,147.6,2.34632327]
[1751688134600,6.14082002,147.61,147.59,197.10632327]
[1751688134803,2.34632327,147.63,147.59,194.76]
[1751688135100,8.48400259,147.62,147.58,2.34632327]
[1751688135404,6.7734,147.6,147.58,2.34632327]
[1751688136298,6.7738,147.59,147.58,2.34632327]
[1751688137505,6.7738,147.59,147.57,242.96632327]
[1751688137906,2.34632327,147.62,147.57,242.96632327]
[1751688137907,6.7735,147.6,147.58,2.34632327]
[1751688138101,6.26885097,147.59,147.58,2.34632327]
[1751688138409,6.7735,147.6,147.58,2.34632327]
[1751688139409,6.7731,147.61,147.58,2.34632327]
[1751688139611,6.26256217,147.6,147.58,2.34632327]
[1751688139908,6.7731,147.61,147.58,197.14632327]
[1751688140109,6.26255826,147.6,147.58,197.14632327]
[1751688140311,6.7731,147.61,147.58,197.14632327]
[1751688140510,6.25979235,147.6,147.58,197.14632327]
[1751688140710,6.25979235,147.59,147.58,197.14632327]
[1751688141213,6.7734,147.6,147.58,197.14632327]
[1751688141401,6.7734,147.6,147.58,194.8]
[1751688141705,6.7734,147.6,147.58,197.14632327]
[1751688146717,6.7734,147.6,147.58,194.8]
[1751688153921,6.7738,147.59,147.58,194.8]
[1751688169332,6.7735,147.6,147.58,197.14883343]
[1751688169833,2.34883343,147.62,147.58,197.14883343]
[1751688170134,6.11372981,147.61,147.58,194.8]
[1751688170332,6.11372981,147.6,147.58,194.8]
[1751688170526,2.34883343,147.62,147.58,194.8]
[1751688170726,6.11515428,147.61,147.58,194.8]
[1751688170928,6.7738,147.59,147.58,194.8]
[1751688173825,12.8931676,147.59,147.58,194.8]
[1751688179128,12.8931676,147.59,147.57,48.16883343]
[1751688179129,6.7742,147.58,147.57,48.16883343]
[1751688179327,12.90940453,147.58,147.57,242.52883343]
[1751688182537,12.90940453,147.58,147.57,242.52896566]
[1751688183135,12.90940453,147.58,147.57,48.16896566]
[1751688183343,12.90940453,147.58,147.57,242.50896566]
[1751688185645,6.7742,147.58,147.57,242.50896566]
[1751688185838,12.91307984,147.58,147.57,242.50896566]
[1751688186241,12.91307984,147.58,147.57,240.16]
[1751688187943,17.98953677,147.58,147.57,240.16]
[1751688188543,6.7761,147.54,147.53,585.02]
[1751688188746,17.99089059,147.54,147.53,825.5]
[1751688189047,11.21479059,147.54,147.53,825.5]
[1751688189437,6.13570205,147.54,147.53,825.5]
[1751688192046,11.20909356,147.54,147.53,825.5]
[1751688192644,6.13570205,147.54,147.53,825.5]
[1751688193844,6.13570205,147.54,147.53,196.85093153]
[1751688194046,11.17695923,147.54,147.53,196.85093153]
[1751688194741,11.17695923,147.54,147.53,203.62743153]
[1751688195247,5.1176831,147.54,147.53,203.62743153]
[1751688195446,6.7743,147.58,147.54,6.7757]
[1751688195746,6.21292212,147.57,147.56,2.35093153]
[1751688195943,6.21292212,147.57,147.56,197.23093153]
[1751688196442,6.21292212,147.57,147.56,243.19093153]
[1751688197046,6.21292212,147.57,147.56,249.96613153]
[1751688197749,6.09594258,147.57,147.56,249.96613153]
[1751688203356,6.09594258,147.57,147.56,9.12613153]
[1751688203560,6.09594258,147.57,147.56,249.84613153]
[1751688205358,6.09594258,147.57,147.56,9.12613153]
[1751688205560,6.09594258,147.57,147.56,249.82613153]
[1751688209967,6.773,147.61,147.58,6.7741]
[1751688210266,6.10181116,147.6,147.59,194.64]
[1751688210965,11.15908963,147.6,147.59,194.64]
[1751688211266,6.10181116,147.6,147.59,194.64]
[1751688217770,11.17075557,147.6,147.59,194.64]
[1751688220467,6.10181116,147.6,147.59,194.64]
[1751688229576,12.87511116,147.6,147.59,194.64]
[1751688230179,6.10181116,147.6,147.59,194.64]
[1751688236177,11.16198171,147.6,147.59,194.64]
[1751688236978,13.90359421,147.6,147.59,194.64]
[1751688239380,20.19350031,147.6,147.59,194.64]
[1751688242078,25.19406239,147.6,147.59,194.64]
[1751688242373,25.20519535,147.6,147.59,194.64]
[1751688243985,25.2052169,147.6,147.59,194.64]
[1751688244285,25.20531743,147.6,147.59,194.64]
[1751688244888,33.88656333,147.6,147.52,633.31093153]
[1751688245184,6.28943436,147.57,147.53,194.28]
[1751688245380,6.10181116,147.56,147.54,6.776]
[1751688245580,6.10181116,147.55,147.54,6.776]
[1751688251797,6.10181116,147.55,147.54,9.12693153]
[1751688252399,6.10181116,147.55,147.54,6.776]
[1751688252598,6.10181116,147.55,147.54,9.12693153]
[1751688252994,6.10181116,147.55,147.54,6.776]
[1751688253199,6.10181116,147.55,147.54,9.12693153]
[1751688258007,6.10181116,147.55,147.54,6.776]
[1751688263609,6.10181116,147.55,147.54,200.976]
[1751688275921,6.10181116,147.55,147.54,203.32693153]
[1751688277017,6.10181116,147.55,147.54,200.976]
[1751688277223,6.10181116,147.55,147.54,203.32693153]
[1751688278825,6.10181116,147.55,147.54,200.976]
[1751688286328,6.10181116,147.55,147.54,6.776]
[1751688286529,6.10181116,147.55,147.54,200.936]
[1751688287035,8.45274269,147.55,147.49,45.88]
[1751688287332,6.10181116,147.54,147.53,2.35093153]
[1751688287534,6.10181116,147.54,147.53,196.85093153]
[1751688288237,6.10181116,147.54,147.53,203.62743153]
[1751688289340,13.88398172,147.54,147.53,203.62743153]
[1751688291637,13.88398172,147.54,147.53,194.5]
[1751688291941,13.88398172,147.54,147.53,240.38]
[1751688293539,13.88398172,147.54,147.53,247.1565]
[1751688294043,13.88398172,147.54,147.53,240.38]
[1751688294742,8.84683209,147.54,147.53,247.1565]
[1751688294937,13.89192734,147.54,147.53,247.1565]
[1751688298135,13.89192734,147.54,147.53,240.38]
[1751688298341,20.1813617,147.54,147.53,195.1]
[1751688298538,20.18459954,147.54,147.53,195.1]
[1751688298749,36.3786748,147.54,147.53,195.1]
[1751688299642,29.6025748,147.54,147.5,45.88]
[1751688299843,6.288021,147.52,147.51,195.08]
[1751688300144,20.17994834,147.52,147.51,195.08]
[1751688300345,26.95694834,147.52,147.51,195.08]
[1751688301139,20.66892734,147.52,147.51,195.08]
[1751688301545,31.92350548,147.52,147.51,195.08]
[1751688301839,26.95256273,147.52,147.51,195.08]
[1751688302945,20.66892734,147.52,147.51,195.08]
[1751688307844,20.66892734,147.52,147.5,45.88]
[1751688308048,6.07107301,147.51,147.5,45.88]
[1751688308244,13.78326198,147.51,147.5,241.02]
[1751688309047,20.56076198,147.51,147.5,241.02]
[1751688309253,12.84857301,147.51,147.5,241.02]
[1751688314656,20.55215396,147.51,147.5,241.02]
[1751688315256,12.84857301,147.51,147.5,240.96]
[1751688318664,11.02393539,147.56,147.5,243.31180707]
[1751688318866,6.0888058,147.55,147.54,2.35180707]
[1751688319067,20.56793504,147.55,147.54,195.08]
[1751688325967,20.57375322,147.55,147.54,195.08]
[1751688327773,20.59322925,147.55,147.54,195.08]
[1751688330080,26.86383586,147.55,147.54,195.08]
[1751688331892,26.91798999,147.55,147.54,195.08]
[1751688334789,19.15498844,147.55,147.54,195.08]
[1751688334991,26.92971624,147.55,147.54,195.08]
[1751688337098,17.91851372,147.55,147.54,197.43180707]
[1751688339494,12.88438183,147.55,147.54,197.43180707]
[1751688339892,17.93022783,147.55,147.54,197.43180707]
[1751688340092,12.88438183,147.55,147.54,197.43180707]
[1751688343501,12.88438183,147.55,147.54,195.08]
[1751688343697,12.88438183,147.55,147.54,197.43180707]
[1751688346504,6.10828183,147.55,147.54,204.20599952]
[1751688348499,6.10828183,147.55,147.54,197.42989952]
[1751688352404,12.88388183,147.55,147.54,197.42989952]
[1751688354909,12.88388183,147.55,147.54,197.4295938]
[1751688357311,12.88388183,147.55,147.54,195.08]
[1751688357512,20.68096646,147.55,147.54,195.08]
[1751688358517,20.68202828,147.55,147.54,195.08]
[1751688360507,13.90642828,147.55,147.5,45.88]
[1751688360714,6.7775,147.51,147.5,45.88]
[1751688360915,12.88578183,147.51,147.5,242.8895938]
[1751688361309,12.91422375,147.51,147.5,242.8895938]
[1751688365417,12.89853187,147.51,147.5,242.8895938]
[1751688368522,6.12103187,147.51,147.5,242.8895938]
[1751688368720,6.28174743,147.56,147.5,242.8895938]
[1751688368924,13.88001678,147.55,147.53,2.3495938]
[1751688369220,6.7756,147.55,147.54,194.6]
[1751688369420,20.65597339,147.55,147.54,194.6]
[1751688371425,17.91550737,147.55,147.54,194.6]
[1751688371624,20.65611838,147.55,147.54,194.6]
[1751688372526,20.65611838,147.55,147.54,196.9495938]
[1751688378328,20.55024821,147.55,147.54,196.9495938]
[1751688378523,20.55024821,147.55,147.54,194.6]
[1751688395945,26.83199564,147.55,147.54,194.6]
[1751688400853,6.7765,147.53,147.52,46.06]
[1751688401052,12.89807159,147.53,147.52,242.7706891]
[1751688402455,15.64638185,147.53,147.52,242.7706891]
[1751688402957,15.64638185,147.53,147.52,240.42]
[1751688403255,20.55377838,147.53,147.52,240.42]
[1751688403853,20.55377838,147.53,147.52,46.06]
[1751688404051,20.56338115,147.53,147.52,240.42]
[1751688405355,26.85398991,147.53,147.52,240.42]
[1751688406354,6.7774,147.52,147.5,2.3506891]
[1751688406554,8.87948462,147.51,147.5,2.3506891]
[1751688406755,8.87948462,147.51,147.5,196.7306891]
[1751688406957,15.65698462,147.51,147.5,196.7306891]
[1751688409458,15.65698462,147.51,147.5,194.38]
[1751688409659,15.65698462,147.51,147.48,45.96]
[1751688409853,6.13117436,147.5,147.48,48.31162726]
[1751688410062,6.13117436,147.49,147.48,48.31162726]
[1751688410355,6.13117436,147.49,147.48,242.69162726]
[1751688410559,6.13117436,147.49,147.48,45.96]
[1751688410756,6.13117436,147.49,147.48,240.34]
[1751688411149,12.90957436,147.49,147.48,240.34]
[1751688411761,6.13117436,147.49,147.48,240.34]
[1751688411959,6.13117436,147.49,147.48,242.69162726]
[1751688413463,6.13117436,147.49,147.48,240.34]
[1751688413661,6.13117436,147.49,147.48,242.69162726]
[1751688416362,6.13117436,147.49,147.48,240.34]
[1751688417963,12.90957436,147.49,147.48,45.96]
[1751688418158,12.90957436,147.49,147.48,240.36]
[1751688419163,12.90957436,147.49,147.48,242.71162726]
[1751688419365,6.13117436,147.49,147.48,242.71162726]
[1751688420465,12.90957436,147.49,147.48,242.71162726]
[1751688420960,12.90957436,147.49,147.48,240.36]
[1751688421861,12.90957436,147.49,147.48,240.38]
[1751688423269,12.90957436,147.49,147.48,45.96]
[1751688423569,12.90957436,147.49,147.48,240.38]
[1751688425072,12.90957436,147.49,147.48,45.96]
[1751688425273,12.90957436,147.49,147.48,240.38]
[1751688430872,12.90957436,147.49,147.48,45.96]
[1751688431078,12.90957436,147.49,147.48,240.42]
[1751688431577,15.65365063,147.49,147.48,240.42]
[1751688432876,15.65365063,147.49,147.48,194.46]
[1751688435175,15.65365063,147.49,147.46,2.35249551]
[1751688435381,6.13117436,147.48,147.47,194.5]
[1751688435580,6.13117436,147.48,147.44,48.33249551]
[1751688435781,6.13117436,147.47,147.45,194.5]
[1751688435981,2.35249551,147.49,147.45,194.5]
[1751688436179,6.7793,147.47,147.45,194.5]
[1751688436678,6.779,147.48,147.45,194.5]
[1751688436881,6.09149227,147.47,147.45,2.35249551]
[1751688437081,6.779,147.48,147.46,194.48]
[1751688437270,12.87099227,147.47,147.46,194.48]
[1751688437583,12.87099227,147.47,147.44,48.33249551]
[1751688437778,6.7798,147.46,147.45,194.48]
[1751688437975,6.11200537,147.46,147.44,45.98]
[1751688438179,6.29060876,147.49,147.45,194.46]
[1751688438381,8.85700875,147.48,147.45,201.2399]
[1751688438580,6.11187939,147.47,147.46,2.35249551]
[1751688438782,6.11187939,147.47,147.45,201.2399]
[1751688438984,8.64310427,147.5,147.46,2.35249551]
[1751688439281,13.72478684,147.49,147.47,194.58]
[1751688439485,8.85375555,147.48,147.47,194.58]
[1751688440679,20.50388863,147.48,147.47,194.58]
[1751688440882,22.85638414,147.48,147.47,194.58]
[1751688441279,6.78,147.46,147.45,194.62]
[1751688441477,12.89188787,147.46,147.45,194.62]
[1751688442481,12.89188787,147.46,147.44,240.7]
[1751688442681,6.11188787,147.45,147.44,240.7]
[1751688442980,12.89208787,147.45,147.44,240.7]
[1751688443182,6.11188787,147.45,147.44,240.7]
[1751688443980,12.89208787,147.45,147.44,240.7]
[1751688444986,12.89208787,147.45,147.44,194.72]
[1751688445887,12.89208787,147.45,147.43,2.35249551]
[1751688446094,6.7802,147.45,147.44,194.76]
[1751688446284,12.87536258,147.45,147.44,194.76]
[1751688446791,12.87536258,147.45,147.41,6.782]
[1751688446989,6.7802,147.45,147.43,2.35249551]
[1751688447288,6.09661017,147.44,147.42,194.76]